[Event "Schack-SM 2024: Mastarklassen"]
[Site "Fortnox Arena, Hejaregatan 5, Vaxjo, Sweden"]
[Date "2024.07.04"]
[Round "6.2"]
[White "Mardell, Jimmy"]
[Black "Mashhadi, Peyman"]
[Result "1/2-1/2"]
[TimeControl "90 minutes for 40 moves + 30 minutes for the rest of the game + 30 seconds per move from move one."]
[WhiteElo "2186"]
[BlackElo "2116"]

1. e4 {[%clk 01:30:54]} {[%emt 00:00:07]} g6 {[%clk 01:30:34]} {[%emt
00:00:26]} 2. d4 {[%clk 01:31:18]} {[%emt 00:00:06]} Bg7 {[%clk 01:30:53]}
{[%emt 00:00:10]} 3. Nf3 {[%clk 01:31:30]} {[%emt 00:00:18]} d6 {[%clk
01:30:52]} {[%emt 00:00:32]} 4. Be2 {[%clk 01:31:48]} {[%emt 00:00:14]} Nf6
{[%clk 01:30:58]} {[%emt 00:00:22]} 5. Nc3 {[%clk 01:32:12]} {[%emt 00:00:06]}
O-O {[%clk 01:30:45]} {[%emt 00:00:43]} 6. O-O {[%clk 01:32:31]} {[%emt
00:00:10]} Nc6 {[%clk 01:26:35]} {[%emt 00:04:40]} 7. d5 {[%clk 01:31:43]}
{[%emt 00:01:19]} Nb8 {[%clk 01:26:34]} {[%emt 00:00:30]} 8. h3 {[%clk
01:26:42]} {[%emt 00:05:32]} a5 {[%clk 01:22:52]} {[%emt 00:04:11]} 9. Bf4
{[%clk 01:23:53]} {[%emt 00:03:19]} Nbd7 {[%clk 01:16:33]} {[%emt 00:06:48]} 10.
Qd2 {[%clk 01:10:25]} {[%emt 00:13:59]} Re8 {[%clk 01:03:28]} {[%emt 00:13:36]}
11. Bb5 {[%clk 00:59:28]} {[%emt 00:11:27]} c6 {[%clk 00:57:01]} {[%emt
00:06:57]} 12. dxc6 {[%clk 00:57:49]} {[%emt 00:02:09]} bxc6 {[%clk 00:57:23]}
{[%emt 00:00:08]} 13. Bxc6 {[%clk 00:58:00]} {[%emt 00:00:18]} Rb8 {[%clk
00:56:25]} {[%emt 00:01:28]} 14. Rab1 {[%clk 00:48:15]} {[%emt 00:10:16]} Qc7
{[%clk 00:46:47]} {[%emt 00:10:07]} 15. Ba4 {[%clk 00:45:16]} {[%emt 00:03:29]}
Bb7 {[%clk 00:39:53]} {[%emt 00:07:24]} 16. Rfe1 {[%clk 00:45:01]} {[%emt
00:00:45]} Red8 {[%clk 00:31:52]} {[%emt 00:08:32]} 17. e5 {[%clk 00:10:57]}
{[%emt 00:34:34]} dxe5 {[%clk 00:25:15]} {[%emt 00:07:08]} 18. Nxe5 {[%clk
00:11:19]} {[%emt 00:00:07]} Nh5 {[%clk 00:24:01]} {[%emt 00:01:44]} 19. Nxg6
{[%clk 00:07:51]} {[%emt 00:03:57]} Ne5 {[%clk 00:13:37]} {[%emt 00:10:55]} 20.
Qe3 {[%clk 00:03:48]} {[%emt 00:04:34]} Nxf4 {[%clk 00:13:21]} {[%emt
00:00:45]} 21. Nxf4 {[%clk 00:04:07]} {[%emt 00:00:11]} Nc4 {[%clk 00:10:49]}
{[%emt 00:03:01]} 22. Qg3 {[%clk 00:04:09]} {[%emt 00:00:29]} Nxb2 {[%clk
00:10:25]} {[%emt 00:00:53]} 23. Nb5 {[%clk 00:02:55]} {[%emt 00:01:44]} Qc5
{[%clk 00:06:27]} {[%emt 00:04:28]} 24. Rxb2 {[%clk 00:02:33]} {[%emt
00:00:53]} Kh8 {[%clk 00:06:56]} {[%emt 00:00:02]} 25. Rbb1 {[%clk 00:02:29]}
{[%emt 00:00:33]} Bc6 {[%clk 00:05:54]} {[%emt 00:01:32]} 26. Qe3 {[%clk
00:02:03]} {[%emt 00:00:55]} Qc4 {[%clk 00:05:38]} {[%emt 00:00:47]} 27. Nh5
{[%clk 00:01:20]} {[%emt 00:01:13]} Qxa4 {[%clk 00:02:47]} {[%emt 00:03:22]} 28.
Nxg7 {[%clk 00:01:45]} {[%emt 00:00:04]} Rg8 {[%clk 00:01:32]} {[%emt
00:01:45]} 29. Nc3 {[%clk 00:01:07]} {[%emt 00:01:08]} Qxc2 {[%clk 00:00:48]}
{[%emt 00:01:15]} 30. Rxb8 {[%clk 00:01:30]} {[%emt 00:00:06]} Rxb8 {[%clk
00:01:16]} {[%emt 00:00:01]} 31. Nf5 {[%clk 00:00:53]} {[%emt 00:01:07]} Qxf5
{[%clk 00:01:12]} {[%emt 00:00:34]} 32. Qxe7 {[%clk 00:00:56]} {[%emt
00:00:27]} Re8 {[%clk 00:00:56]} {[%emt 00:00:46]} 33. Qxe8+ {[%clk 00:00:43]}
{[%emt 00:00:43]} Bxe8 {[%clk 00:01:24]} {[%emt 00:00:02]} 34. Rxe8+ {[%clk
00:01:07]} {[%emt 00:00:07]} Kg7 {[%clk 00:01:53]} {[%emt 00:00:02]} 35. Re3
{[%clk 00:01:29]} {[%emt 00:00:07]} Qc2 {[%clk 00:01:53]} {[%emt 00:00:30]} 36.
Rf3 {[%clk 00:01:32]} {[%emt 00:00:28]} f5 {[%clk 00:01:50]} {[%emt 00:00:33]}
37. g3 {[%clk 00:01:06]} {[%emt 00:00:55]} Qd2 {[%clk 00:01:25]} {[%emt
00:00:56]} 38. Re3 {[%clk 00:01:00]} {[%emt 00:00:37]} Kf7 {[%clk 00:01:04]}
{[%emt 00:00:51]} 39. Kg2 {[%clk 00:01:13]} {[%emt 00:00:16]} Qd4 {[%clk
00:00:50]} {[%emt 00:00:44]} 40. Kg1 {[%clk 00:00:49]} {[%emt 00:00:54]} Qd2
{[%clk 00:00:42]} {[%emt 00:00:39]} 41. Kg2 {[%clk 00:29:33]} {[%emt 00:01:45]}
h6 {[%clk 00:29:32]} {[%emt 00:01:39]} 42. a3 {[%clk 00:28:50]} {[%emt
00:01:15]} h5 {[%clk 00:22:49]} {[%emt 00:07:13]} 43. h4 {[%clk 00:24:17]}
{[%emt 00:05:02]} Kg6 {[%clk 00:19:41]} {[%emt 00:03:38]} 44. Ne2 {[%clk
00:24:31]} {[%emt 00:00:16]} Qd5+ {[%clk 00:16:54]} {[%emt 00:03:15]} 45. Kh2
{[%clk 00:24:46]} {[%emt 00:00:16]} Qd1 {[%clk 00:15:57]} {[%emt 00:01:27]} 46.
Nf4+ {[%clk 00:24:39]} {[%emt 00:00:37]} Kg7 {[%clk 00:14:22]} {[%emt
00:02:05]} 47. Kg2 {[%clk 00:20:23]} {[%emt 00:04:45]} a4 {[%clk 00:14:15]}
{[%emt 00:00:39]} 48. Rd3 {[%clk 00:18:21]} {[%emt 00:02:31]} Qc1 {[%clk
00:10:59]} {[%emt 00:03:46]} 49. Nxh5+ {[%clk 00:16:14]} {[%emt 00:02:37]} Kh6
{[%clk 00:11:08]} {[%emt 00:00:21]} 50. Nf4 {[%emt 00:00:39]} Qc5 {[%clk
00:11:08]} 51. Re3 {[%clk 00:16:37]} {[%emt 00:00:29]} Qc6+ {[%clk 00:10:44]}
{[%emt 00:00:53]} 52. Kh2 {[%clk 00:16:59]} {[%emt 00:00:09]} Qc5 {[%clk
00:10:32]} {[%emt 00:00:41]} 53. h5 {[%clk 00:16:02]} {[%emt 00:01:27]} Qc1
{[%clk 00:09:45]} {[%emt 00:01:18]} 54. Re6+ {[%clk 00:13:19]} {[%emt
00:03:12]} Kh7 {[%clk 00:10:01]} {[%emt 00:00:13]} 55. Nh3 {[%clk 00:07:58]}
{[%emt 00:05:53]} Qxa3 {[%clk 00:04:29]} {[%emt 00:06:01]} 56. Ng5+ {[%clk
00:08:19]} {[%emt 00:00:09]} Kh8 {[%clk 00:04:40]} {[%emt 00:00:20]} 57. Rh6+
{[%clk 00:03:41]} {[%emt 00:05:07]} Kg7 {[%clk 00:04:43]} {[%emt 00:00:27]} 58.
Rg6+ {[%clk 00:04:07]} {[%emt 00:00:05]} Kh8 {[%clk 00:03:17]} {[%emt
00:01:56]} 59. Nf7+ {[%clk 00:00:56]} {[%emt 00:03:40]} Kh7 {[%clk 00:03:45]}
{[%emt 00:00:02]} 60. Ng5+ {[%clk 00:01:09]} {[%emt 00:00:18]} Kh8 {[%clk
00:04:14]} 1/2-1/2

[Event "Schack-SM 2024: Mastarklassen"]
[Site "Fortnox Arena, Hejaregatan 5, Vaxjo, Sweden"]
[Date "2024.07.04"]
[Round "6.3"]
[White "Liden, Tommy"]
[Black "Tuomainen, Felix"]
[Result "1/2-1/2"]
[TimeControl "90 minutes for 40 moves + 30 minutes for the rest of the game + 30 seconds per move from move one."]
[BlackTitle "FM"]
[WhiteElo "2123"]
[BlackElo "2255"]

1. e4 {[%clk 01:30:58]} e5 {[%clk 01:30:05]} {[%emt 00:00:56]} 2. Nf3 {[%clk
01:31:12]} {[%emt 00:00:15]} Nc6 {[%clk 01:30:31]} {[%emt 00:00:05]} 3. Bc4
{[%clk 01:31:32]} {[%emt 00:00:10]} Nf6 {[%clk 01:30:43]} {[%emt 00:00:18]} 4.
d3 {[%clk 01:31:39]} {[%emt 00:00:23]} h6 {[%clk 01:30:56]} {[%emt 00:00:18]} 5.
O-O {[%clk 01:30:52]} {[%emt 00:01:17]} d6 {[%clk 01:31:20]} {[%emt 00:00:06]}
6. a4 {[%clk 01:29:53]} {[%emt 00:01:30]} g5 {[%clk 01:27:29]} {[%emt
00:04:21]} 7. Re1 {[%clk 01:28:47]} {[%emt 00:01:37]} g4 {[%clk 01:27:28]}
{[%emt 00:00:29]} 8. Nfd2 {[%clk 01:28:36]} {[%emt 00:00:42]} h5 {[%clk
01:27:48]} {[%emt 00:00:10]} 9. Nf1 {[%clk 01:27:49]} {[%emt 00:01:16]} h4
{[%clk 01:25:01]} {[%emt 00:03:19]} 10. Bg5 {[%clk 01:25:57]} {[%emt 00:02:21]}
Rh5 {[%clk 01:21:54]} {[%emt 00:03:35]} 11. Be3 {[%clk 01:18:49]} {[%emt
00:07:40]} Ne7 {[%clk 01:19:18]} {[%emt 00:03:04]} 12. Nc3 {[%clk 01:13:09]}
{[%emt 00:06:11]} Ng6 {[%clk 01:17:42]} {[%emt 00:02:05]} 13. d4 {[%clk
01:04:28]} {[%emt 00:09:13]} Bg7 {[%clk 01:13:18]} {[%emt 00:04:53]} 14. a5
{[%clk 00:57:02]} {[%emt 00:07:57]} a6 {[%clk 01:13:40]} {[%emt 00:00:09]} 15.
Ra3 {[%clk 00:55:04]} {[%emt 00:02:27]} Kf8 {[%clk 01:05:01]} {[%emt 00:09:09]}
16. Be2 {[%clk 00:52:16]} {[%emt 00:03:16]} exd4 {[%clk 00:57:40]} {[%emt
00:07:52]} 17. Qxd4 {[%clk 00:48:37]} {[%emt 00:04:08]} Nd5 {[%clk 00:52:36]}
{[%emt 00:05:35]} 18. Qd1 {[%clk 00:43:14]} {[%emt 00:05:52]} Nxe3 {[%clk
00:52:24]} {[%emt 00:00:42]} 19. Nxe3 {[%clk 00:43:23]} {[%emt 00:00:22]} Rg5
{[%clk 00:49:51]} {[%emt 00:03:00]} 20. Bxg4 {[%clk 00:40:48]} {[%emt
00:03:09]} Be6 {[%clk 00:33:16]} {[%emt 00:17:00]} 21. Bf5 {[%clk 00:34:51]}
{[%emt 00:06:32]} Be5 {[%clk 00:30:34]} {[%emt 00:03:07]} 22. Qf3 {[%clk
00:32:53]} {[%emt 00:02:32]} Kg7 {[%clk 00:30:30]} {[%emt 00:00:34]} 23. Ng4
{[%clk 00:29:05]} {[%emt 00:04:17]} Qe7 {[%clk 00:25:32]} {[%emt 00:05:25]} 24.
Rd1 {[%clk 00:23:15]} {[%emt 00:06:24]} h3 {[%clk 00:25:25]} {[%emt 00:00:37]}
25. g3 {[%clk 00:21:29]} {[%emt 00:02:16]} Re8 {[%emt 00:08:10]} 26. Nd5 {[%clk
00:16:19]} Bxd5 {[%clk 00:22:27]} {[%emt 00:01:27]} 27. Rxd5 {[%clk 00:16:42]}
{[%emt 00:00:07]} c6 {[%clk 00:20:38]} {[%emt 00:02:19]} 28. Rd1 {[%clk
00:15:38]} {[%emt 00:01:32]} Bxb2 {[%clk 00:19:12]} {[%emt 00:01:58]} 29. Rb3
{[%clk 00:12:46]} {[%emt 00:03:21]} Be5 {[%clk 00:19:17]} {[%emt 00:00:23]} 30.
Rdb1 {[%clk 00:11:34]} {[%emt 00:01:44]} Rb8 {[%clk 00:19:02]} {[%emt
00:00:46]} 31. Qe3 {[%clk 00:10:34]} {[%emt 00:01:29]} Rh5 {[%clk 00:11:56]}
{[%emt 00:07:35]} 32. f4 {[%clk 00:10:16]} {[%emt 00:00:48]} Bf6 {[%clk
00:11:50]} {[%emt 00:00:34]} 33. Nxf6 {[%clk 00:03:48]} {[%emt 00:06:59]} Qxf6
{[%clk 00:12:09]} {[%emt 00:00:12]} 34. Qa7 {[%clk 00:02:43]} {[%emt 00:01:36]}
Rhh8 {[%clk 00:11:33]} {[%emt 00:01:06]} 35. Bxg6 {[%clk 00:01:45]} {[%emt
00:01:27]} Kxg6 {[%clk 00:10:33]} {[%emt 00:01:30]} 36. f5+ {[%clk 00:01:55]}
{[%emt 00:00:19]} Kg7 {[%clk 00:09:53]} {[%emt 00:01:07]} 37. Rxb7 {[%clk
00:01:59]} {[%emt 00:00:30]} Rxb7 {[%clk 00:10:04]} {[%emt 00:00:18]} 38. Rxb7
{[%clk 00:02:27]} {[%emt 00:00:03]} c5 {[%clk 00:10:14]} {[%emt 00:00:21]} 39.
e5 {[%clk 00:02:27]} {[%emt 00:00:28]} Qxf5 {[%clk 00:10:10]} {[%emt 00:00:33]}
40. Qxa6 {[%clk 00:00:46]} {[%emt 00:02:13]} Qxe5 {[%clk 00:07:25]} {[%emt
00:03:15]} 41. Qf1 {[%clk 00:00:34]} {[%emt 00:00:42]} Qd4+ {[%clk 00:01:03]}
{[%emt 00:06:48]} 42. Qf2 {[%clk 00:00:35]} {[%emt 00:00:32]} Qd1+ {[%clk
00:29:06]} {[%emt 00:02:25]} 43. Qf1 {[%clk 00:30:53]} {[%emt 00:00:15]} Qd5
{[%clk 00:29:10]} {[%emt 00:00:22]} 44. Rb1 {[%clk 00:19:34]} {[%emt 00:11:52]}
Rh6 {[%clk 00:21:39]} {[%emt 00:08:00]} 45. Rd1 {[%clk 00:18:52]} {[%emt
00:01:14]} Qe4 {[%clk 00:21:36]} {[%emt 00:00:28]} 46. Rd2 {[%clk 00:08:37]}
{[%emt 00:10:49]} Rf6 {[%clk 00:21:00]} {[%emt 00:01:06]} 47. Rf2 {[%clk
00:08:50]} {[%emt 00:00:17]} Rxf2 {[%clk 00:14:16]} {[%emt 00:07:15]} 48. Qxf2
{[%clk 00:09:10]} {[%emt 00:00:10]} Qa4 {[%clk 00:10:31]} {[%emt 00:04:13]} 49.
Qd2 {[%clk 00:07:49]} {[%emt 00:01:53]} Qa1+ {[%clk 00:08:50]} {[%emt
00:02:11]} 50. Kf2 {[%clk 00:08:12]} {[%emt 00:00:07]} Qf6+ {[%clk 00:09:10]}
{[%emt 00:00:09]} 51. Qf4 {[%clk 00:08:20]} {[%emt 00:00:24]} Qc3 {[%clk
00:08:52]} {[%emt 00:00:40]} 52. Qg5+ {[%clk 00:06:52]} {[%emt 00:02:05]} Kf8
{[%clk 00:09:12]} {[%emt 00:00:04]} 53. Qh6+ {[%clk 00:06:21]} {[%emt
00:01:07]} Kg8 {[%clk 00:07:54]} {[%emt 00:01:47]} 54. Qg5+ {[%clk 00:03:58]}
{[%emt 00:02:52]} 1/2-1/2

[Event "Schack-SM 2024: Mastarklassen"]
[Site "Fortnox Arena, Hejaregatan 5, Vaxjo, Sweden"]
[Date "2024.07.04"]
[Round "6.4"]
[White "Bjorkman, Filip"]
[Black "Collett, Peter"]
[Result "1/2-1/2"]
[TimeControl "90 minutes for 40 moves + 30 minutes for the rest of the game + 30 seconds per move from move one."]
[BlackTitle "CM"]
[WhiteElo "2116"]
[BlackElo "2116"]

1. e4 {[%clk 01:30:56]} {[%emt 00:00:03]} e5 {[%clk 01:30:52]} {[%emt
00:00:09]} 2. Nf3 {[%clk 01:31:22]} {[%emt 00:00:04]} Nc6 {[%clk 01:31:12]}
{[%emt 00:00:09]} 3. Bc4 {[%clk 01:31:47]} {[%emt 00:00:06]} Bc5 {[%clk
01:31:33]} {[%emt 00:00:07]} 4. c3 {[%clk 01:32:13]} {[%emt 00:00:05]} Nf6
{[%clk 01:31:54]} {[%emt 00:00:08]} 5. d4 {[%clk 01:32:41]} {[%emt 00:00:03]}
exd4 {[%clk 01:32:00]} {[%emt 00:00:12]} 6. e5 {[%clk 01:33:10]} d5 {[%clk
01:32:09]} {[%emt 00:00:33]} 7. Bb5 {[%clk 01:33:34]} {[%emt 00:00:07]} Ne4
{[%clk 01:32:31]} {[%emt 00:00:08]} 8. cxd4 {[%clk 01:33:59]} {[%emt 00:00:06]}
Bb6 {[%clk 01:32:55]} {[%emt 00:00:06]} 9. Nc3 {[%clk 01:34:17]} {[%emt
00:00:12]} O-O {[%clk 01:32:23]} {[%emt 00:01:01]} 10. Be3 {[%clk 01:34:41]}
{[%emt 00:00:07]} Bg4 {[%clk 01:31:51]} {[%emt 00:01:02]} 11. h3 {[%clk
01:35:02]} {[%emt 00:00:07]} Bh5 {[%clk 01:31:29]} {[%emt 00:00:52]} 12. Qc2
{[%clk 01:34:53]} {[%emt 00:00:40]} Bg6 {[%clk 01:28:09]} {[%emt 00:03:49]} 13.
Qb3 {[%clk 01:35:13]} {[%emt 00:00:11]} Ne7 {[%clk 01:28:05]} {[%emt 00:00:34]}
14. O-O {[%clk 01:35:04]} {[%emt 00:00:39]} c6 {[%clk 01:27:38]} {[%emt
00:00:57]} 15. Bd3 {[%clk 01:35:12]} {[%emt 00:00:22]} Nd2 {[%clk 01:25:55]}
{[%emt 00:02:14]} 16. Nxd2 {[%clk 01:35:34]} {[%emt 00:00:07]} Bf5 {[%emt
00:00:09]} 17. Be4 Bxe4 {[%clk 01:26:16]} 18. Rfe1 {[%clk 01:35:51]} {[%emt
00:00:13]} Bf5 {[%clk 01:26:07]} {[%emt 00:00:39]} 19. Na4 {[%clk 01:35:33]}
{[%emt 00:00:48]} Ng6 {[%clk 01:26:02]} {[%emt 00:00:35]} 20. g4 {[%clk
01:28:16]} {[%emt 00:07:47]} Bc8 {[%clk 01:21:00]} {[%emt 00:05:34]} 21. Nxb6
{[%clk 00:31:36]} {[%emt 00:57:08]} axb6 {[%clk 01:20:36]} {[%emt 00:00:55]} 22.
f4 {[%clk 00:30:30]} {[%emt 00:01:35]} Bxg4 {[%clk 01:00:15]} {[%emt 00:20:52]}
23. hxg4 {[%clk 00:30:27]} {[%emt 00:00:31]} Qh4 {[%clk 01:00:40]} {[%emt
00:00:07]} 24. Qd1 {[%clk 00:20:52]} {[%emt 00:10:04]} Qg3+ {[%clk 01:00:00]}
{[%emt 00:01:11]} 25. Kf1 {[%clk 00:20:10]} {[%emt 00:01:12]} Qh3+ {[%clk
00:57:42]} {[%emt 00:02:49]} 26. Kg1 {[%clk 00:17:02]} {[%emt 00:03:37]}
1/2-1/2

[Event "Schack-SM 2024: Mastarklassen"]
[Site "Fortnox Arena, Hejaregatan 5, Vaxjo, Sweden"]
[Date "2024.07.04"]
[Round "6.5"]
[White "Landgren, Andreas"]
[Black "Dingertz, Erik"]
[Result "1-0"]
[TimeControl "90 minutes for 40 moves + 30 minutes for the rest of the game + 30 seconds per move from move one."]
[WhiteTitle "FM"]
[WhiteElo "2243"]
[BlackElo "2081"]

1. d4 {[%clk 01:30:57]} {[%emt 00:00:02]} Nf6 {[%clk 01:30:12]} {[%emt
00:00:48]} 2. c4 {[%clk 01:31:20]} {[%emt 00:00:07]} e6 {[%clk 01:30:38]}
{[%emt 00:00:05]} 3. Nf3 {[%clk 01:31:38]} {[%emt 00:00:12]} d5 {[%clk
01:30:11]} {[%emt 00:00:57]} 4. Nc3 {[%clk 01:32:00]} {[%emt 00:00:07]} dxc4
{[%clk 01:30:31]} {[%emt 00:00:11]} 5. e4 {[%clk 01:32:12]} {[%emt 00:00:18]}
Bb4 {[%clk 01:30:54]} {[%emt 00:00:07]} 6. Bxc4 {[%clk 01:32:30]} {[%emt
00:00:12]} Nxe4 {[%clk 01:31:15]} {[%emt 00:00:09]} 7. O-O {[%clk 01:32:27]}
{[%emt 00:00:33]} Nxc3 {[%clk 01:31:40]} {[%emt 00:00:04]} 8. bxc3 {[%clk
01:32:51]} {[%emt 00:00:06]} Be7 {[%clk 01:32:07]} {[%emt 00:00:03]} 9. Ne5
{[%clk 01:29:39]} {[%emt 00:03:42]} O-O {[%clk 01:31:23]} {[%emt 00:01:14]} 10.
Qg4 {[%clk 01:27:34]} {[%emt 00:02:35]} Nc6 {[%clk 01:31:47]} {[%emt 00:00:07]}
11. Re1 {[%clk 01:27:17]} {[%emt 00:00:46]} f5 {[%clk 01:31:32]} {[%emt
00:00:46]} 12. Qf3 {[%clk 01:27:38]} {[%emt 00:00:07]} Nxe5 {[%clk 01:31:19]}
{[%emt 00:00:44]} 13. Rxe5 {[%clk 01:27:59]} {[%emt 00:00:08]} Kh8 {[%clk
01:31:46]} {[%emt 00:00:03]} 14. Bf4 {[%clk 01:28:15]} {[%emt 00:00:15]} Bd6
{[%clk 01:32:03]} {[%emt 00:00:15]} 15. Re2 {[%clk 01:27:40]} {[%emt 00:01:04]}
Bxf4 {[%clk 01:30:04]} {[%emt 00:02:29]} 16. Qxf4 {[%clk 01:27:15]} {[%emt
00:00:56]} Qd6 {[%clk 01:30:29]} {[%emt 00:00:04]} 17. Qf3 {[%clk 01:21:38]}
{[%emt 00:06:07]} Bd7 {[%clk 01:08:44]} {[%emt 00:22:15]} 18. Qxb7 {[%clk
01:19:47]} {[%emt 00:02:22]} Bc6 {[%clk 01:03:17]} {[%emt 00:05:58]} 19. Qa6
{[%clk 01:18:41]} {[%emt 00:01:34]} Rf6 {[%clk 01:03:18]} {[%emt 00:00:28]} 20.
Rae1 {[%clk 01:11:58]} {[%emt 00:07:14]} Rg6 {[%clk 00:56:45]} {[%emt
00:07:04]} 21. g3 {[%clk 01:11:55]} {[%emt 00:00:32]} Be4 {[%clk 00:56:51]}
{[%emt 00:00:25]} 22. Qxd6 {[%clk 00:58:51]} {[%emt 00:13:34]} cxd6 {[%clk
00:57:11]} {[%emt 00:00:10]} 23. f3 {[%clk 00:59:06]} {[%emt 00:00:14]} Bxf3
{[%clk 00:52:56]} {[%emt 00:04:46]} 24. Rxe6 {[%clk 00:59:28]} {[%emt
00:00:08]} Rxe6 {[%clk 00:53:17]} {[%emt 00:00:09]} 25. Rxe6 {[%clk 00:59:24]}
{[%emt 00:00:32]} h6 {[%clk 00:43:12]} {[%emt 00:10:35]} 26. Rxd6 {[%clk
00:58:30]} {[%emt 00:01:24]} Be4 {[%clk 00:42:11]} {[%emt 00:01:32]} 27. Bf7
{[%clk 00:54:30]} {[%emt 00:04:30]} g5 {[%clk 00:39:52]} {[%emt 00:02:48]} 28.
Bb3 {[%clk 00:49:25]} {[%emt 00:05:35]} a5 {[%clk 00:39:10]} {[%emt 00:01:13]}
29. Bd5 {[%clk 00:30:21]} {[%emt 00:19:34]} Rc8 {[%clk 00:37:55]} {[%emt
00:01:42]} 30. Bxe4 {[%clk 00:28:37]} {[%emt 00:02:17]} fxe4 {[%clk 00:38:20]}
{[%emt 00:00:04]} 31. Rxh6+ {[%clk 00:28:46]} {[%emt 00:00:22]} Kg7 {[%clk
00:38:46]} {[%emt 00:00:04]} 32. Ra6 {[%clk 00:25:09]} {[%emt 00:04:07]} a4
{[%clk 00:35:33]} {[%emt 00:03:43]} 33. Rxa4 {[%clk 00:23:57]} {[%emt
00:01:42]} Rxc3 {[%clk 00:35:58]} {[%emt 00:00:06]} 34. Ra5 {[%clk 00:15:09]}
{[%emt 00:09:18]} Kf6 {[%clk 00:35:09]} {[%emt 00:01:18]} 35. Re5 {[%clk
00:15:25]} {[%emt 00:00:15]} e3 {[%clk 00:31:42]} {[%emt 00:03:57]} 36. Kf1
{[%clk 00:12:33]} {[%emt 00:03:22]} Ra3 {[%clk 00:31:00]} {[%emt 00:01:11]} 37.
Ke2 {[%clk 00:06:49]} {[%emt 00:06:14]} Rxa2+ {[%clk 00:29:58]} {[%emt
00:01:32]} 38. Kxe3 {[%clk 00:07:01]} {[%emt 00:00:17]} Rxh2 {[%clk 00:30:24]}
{[%emt 00:00:06]} 39. Kd3 {[%clk 00:06:52]} {[%emt 00:00:38]} Rf2 {[%clk
00:24:01]} {[%emt 00:06:52]} 40. Re3 {[%clk 00:05:21]} {[%emt 00:02:01]} g4
{[%clk 00:24:17]} {[%emt 00:00:13]} 41. d5 {[%clk 00:04:44]} {[%emt 00:01:08]}
Rf1 {[%clk 00:21:28]} {[%emt 00:03:20]} 42. Kd4 {[%clk 00:03:38]} {[%emt
00:01:34]} Kf7 {[%clk 00:19:11]} {[%emt 00:02:46]} 43. d6 {[%clk 00:02:51]}
{[%emt 00:01:19]} Kf8 {[%clk 00:19:02]} {[%emt 00:00:38]} 44. d7 {[%clk
00:01:25]} {[%emt 00:01:57]} Rd1+ {[%clk 00:19:21]} {[%emt 00:00:10]} 45. Rd3
{[%clk 00:01:51]} {[%emt 00:00:05]} Rxd3+ {[%clk 00:19:46]} {[%emt 00:00:04]}
46. Kxd3 {[%clk 00:02:18]} {[%emt 00:00:04]} Ke7 {[%clk 00:20:14]} {[%emt
00:00:02]} 47. Ke4 {[%clk 00:02:40]} {[%emt 00:00:07]} Kxd7 {[%clk 00:20:42]}
{[%emt 00:00:03]} 48. Kf5 {[%clk 00:03:03]} {[%emt 00:00:07]} Ke7 {[%clk
00:21:06]} {[%emt 00:00:06]} 49. Kxg4 {[%clk 00:03:23]} {[%emt 00:00:09]} Kf6
{[%clk 00:21:18]} {[%emt 00:00:18]} 50. Kh5 {[%clk 00:03:47]} {[%emt 00:00:07]}
1-0